Workbook

Sheet Door

Sheet Start (hidden)
B1: Вопрос | C1: Ответ дан | D1: Быстрый переход
B2: 1 | C2: =IF(ISBLANK(REF!F2),"НЕТ","ДА") -> НЕТ | D2: Вопрос 1
B3: 2 | C3: =IF(ISBLANK(REF!F3),"НЕТ","ДА") -> НЕТ | D3: Вопрос 2
B4: 3 | C4: =IF(ISBLANK(REF!F4),"НЕТ","ДА") -> НЕТ | D4: Вопрос 3
B5: 4 | C5: =IF(ISBLANK(REF!F5),"НЕТ","ДА") -> НЕТ | D5: Вопрос 4
B6: 5 | C6: =IF(ISBLANK(REF!F6),"НЕТ","ДА") -> НЕТ | D6: Вопрос 5
B7: 6 | C7: =IF(ISBLANK(REF!F7),"НЕТ","ДА") -> НЕТ | D7: Вопрос 6
B8: 7 | C8: =IF(ISBLANK(REF!F8),"НЕТ","ДА") -> НЕТ | D8: Вопрос 7
B9: 8 | C9: =IF(ISBLANK(REF!F9),"НЕТ","ДА") -> НЕТ | D9: Вопрос 8
B10: 9 | C10: =IF(ISBLANK(REF!F10),"НЕТ","ДА") -> НЕТ | D10: Вопрос 9 | Z10: 1
B11: 10 | C11: =IF(ISBLANK(REF!F11),"НЕТ","ДА") -> НЕТ | D11: Вопрос 10
B12: 11 | C12: =IF(ISBLANK(REF!F12),"НЕТ","ДА") -> НЕТ | D12: Вопрос 11
B13: 12 | C13: =IF(ISBLANK(REF!F13),"НЕТ","ДА") -> НЕТ | D13: Вопрос 12
B14: 13 | C14: =IF(ISBLANK(REF!F14),"НЕТ","ДА") -> НЕТ | D14: Вопрос 13
B15: 14 | C15: =IF(ISBLANK(REF!F15),"НЕТ","ДА") -> НЕТ | D15: Вопрос 14
B16: 15 | C16: =IF(ISBLANK(REF!F16),"НЕТ","ДА") -> НЕТ | D16: Вопрос 15
B17: 16 | C17: =IF(ISBLANK(REF!F17),"НЕТ","ДА") -> НЕТ | D17: Вопрос 16
B18: 17 | C18: =IF(ISBLANK(REF!F18),"НЕТ","ДА") -> НЕТ | D18: Вопрос 17
B19: 18 | C19: =IF(ISBLANK(REF!F19),"НЕТ","ДА") -> НЕТ | D19: Вопрос 18
B20: 19 | C20: =IF(ISBLANK(REF!F20),"НЕТ","ДА") -> НЕТ | D20: Вопрос 19
B21: 20 | C21: =IF(ISBLANK(REF!F21),"НЕТ","ДА") -> НЕТ | D21: Вопрос 20
B22: 21 | C22: =IF(ISBLANK(REF!F22),"НЕТ","ДА") -> НЕТ | D22: Вопрос 21
B23: 22 | C23: =IF(ISBLANK(REF!F23),"НЕТ","ДА") -> НЕТ | D23: Вопрос 22
B24: 23 | C24: =IF(ISBLANK(REF!F24),"НЕТ","ДА") -> НЕТ | D24: Вопрос 23
B25: 24 | C25: =IF(ISBLANK(REF!F25),"НЕТ","ДА") -> НЕТ | D25: Вопрос 24
B26: 25 | C26: =IF(ISBLANK(REF!F26),"НЕТ","ДА") -> НЕТ | D26: Вопрос 25
B27: 26 | C27: =IF(ISBLANK(REF!F27),"НЕТ","ДА") -> НЕТ | D27: Вопрос 26
B28: 27 | C28: =IF(ISBLANK(REF!F28),"НЕТ","ДА") -> НЕТ | D28: Вопрос 27
B29: 28 | C29: =IF(ISBLANK(REF!F29),"НЕТ","ДА") -> НЕТ | D29: Вопрос 28
B30: 29 | C30: =IF(ISBLANK(REF!F30),"НЕТ","ДА") -> НЕТ | D30: Вопрос 29

Sheet Results (hidden)
A1: Тестируемый
A2: Дата | B2: =TODAY() -> 2014-06-17
A4: Навыки | B4: Максимум | C4: Набрано | D4: Результат
A5: 1. Навигация | B5: 9 | C5: 0 | D5: 0
A6: Начальный | B6: 4 | C6: 0 | D6: 0
A7: Базовый | B7: 5 | D7: 0
A8: 2. Операции с диапазонами | B8: 56 | D8: 0
A9: Начальный | B9: 6 | D9: 0
A10: Базовый | B10: 30 | D10: 0
A11: Расширенный | B11: 20 | D11: 0
A12: 3. Формулы | B12: 77 | C12: 5 | D12: 0.06493506494
A13: Начальный | B13: 2 | D13: 0
A14: Базовый | B14: 25 | C14: 5 | D14: 0.2
A15: Расширенный | B15: 50 | D15: 0
A16: 4. Диаграммы | B16: 5 | D16: 0
A17: Базовый | B17: 5 | D17: 0
A18: 5. Продвинутые инструменты | B18: 30 | D18: 0
A19: Расширенный | B19: 30 | D19: 0
A20: Общий итог | B20: 177 | C20: 5 | D20: 0.02824858757

Sheet Details (hidden)
A1: Вопросы, на которые не получены правильные ответы
A4: Факт | B4: 0
A6: Раздел | B6: Вопрос
A7: 1. Навигация | B7: 1

Sheet REF (hidden)
A1: Вопрос | B1: Раздел | C1: Тема | D1: Уровень | E1: Сложность | F1: Факт
A2: 1 | B2: 1. Навигация | C2: Навигация по книге и листам | D2: Начальный | E2: 2
A3: 2 | B3: 1. Навигация | C3: Навигация по книге и листам | D3: Начальный | E3: 2
A4: 3 | B4: 2. Операции с диапазонами | C4: Буфер обмена, специальная вставка | D4: Начальный | E4: 2
A5: 4 | B5: 2. Операции с диапазонами | C5: Форматирование ячеек | D5: Начальный | E5: 2
A6: 5 | B6: 2. Операции с диапазонами | C6: Типы данных в ячейках | D6: Начальный | E6: 2
A7: 6 | B7: 2. Операции с диапазонами | C7: Типы данных в ячейках | D7: Базовый | E7: 5
A8: 7 | B8: 2. Операции с диапазонами | C8: Понятие о таблице | D8: Базовый | E8: 5
A9: 8 | B9: 1. Навигация | C9: Форматы файлов | D9: Базовый | E9: 5
A10: 9 | B10: 3. Формулы | C10: Элементарные формулы | D10: Начальный | E10: 2
A11: 10 | B11: 3. Формулы | C11: Базовые формулы | D11: Базовый | E11: 5
A12: 11 | B12: 4. Диаграммы | C12: Диаграммы | D12: Базовый | E12: 5
A13: 12 | B13: 2. Операции с диапазонами | C13: Разбиение текста по столбцам | D13: Базовый | E13: 5
A14: 13 | B14: 2. Операции с диапазонами | C14: Массовый поиск с заменой | D14: Базовый | E14: 5
A15: 14 | B15: 3. Формулы | C15: Основы адрессации ячеек | D15: Базовый | E15: 5
A16: 15 | B16: 2. Операции с диапазонами | C16: Сортировка | D16: Базовый | E16: 5
A17: 16 | B17: 2. Операции с диапазонами | C17: Группировка строк и столбцов | D17: Базовый | E17: 5
A18: 17 | B18: 3. Формулы | C18: Формулы работы с текстом | D18: Базовый | E18: 5
A19: 18 | B19: 3. Формулы | C19: Формулы условия | D19: Базовый | E19: 5
A20: 19 | B20: 3. Формулы | C20: Формулы работы с текстом | D20: Расширенный | E20: 10
A21: 20 | B21: 3. Формулы | C21: Формулы условного суммирования и подсчетов | D21: Базовый | E21: 5
A22: 21 | B22: 5. Продвинутые инструменты | C22: Проверка данных в ячейке | D22: Расширенный | E22: 10
A23: 22 | B23: 3. Формулы | C23: Функции извлечения данных | D23: Расширенный | E23: 10
A24: 23 | B24: 2. Операции с диапазонами | C24: Работа с диапазонами | D24: Расширенный | E24: 10
A25: 24 | B25: 2. Операции с диапазонами | C25: Работа с диапазонами | D25: Расширенный | E25: 10
A26: 25 | B26: 3. Формулы | C26: Решение проблем с формулами | D26: Расширенный | E26: 10
A27: 26 | B27: 5. Продвинутые инструменты | C27: Сводные таблицы | D27: Расширенный | E27: 10
A28: 27 | B28: 5. Продвинутые инструменты | C28: Условное форматирование | D28: Расширенный | E28: 10
A29: 28 | B29: 3. Формулы | C29: Функции извлечения данных | D29: Расширенный | E29: 10
A30: 29 | B30: 3. Формулы | C30: Именованные диапазоны, умные таблицы | D30: Расширенный | E30: 10

Sheet Q01 (hidden)
A1: TRUE
A2: FALSE | O2: вопрос 1 | P2: Батьянов Денис © perfect-excel.ru
A3: FALSE | C3: Товары | D3: Цена | E3: Количество | F3: Сумма | O3: Вы находитесь в первой строке колонки Товары. Как проще всего переместиться на ближайшую строку, за которой не заполнен столбец Товары?
A4: FALSE | C4: T1 | D4: 3 | E4: 16 | F4: =D4*E4 -> 48
A5: FALSE | C5: T2 | D5: 4 | E5: 11 | F5: =D5*E5 -> 44
A6: =MATCH(TRUE,$A$1:$A$5,0) -> 1 | C6: T3 | D6: 3 | E6: 1 | F6: 3
C7: T4 | D7: 10 | E7: 49 | F7: 490
C8: T5 | D8: 10 | E8: 31 | F8: 310
C9: T6 | D9: 1 | E9: 13 | F9: 13
C10: T7 | D10: 10 | E10: 1 | F10: 10
C11: T8 | D11: 10 | E11: 7 | F11: 70
C12: T9 | D12: 1 | E12: 23 | F12: 23
C13: T10 | D13: 7 | E13: 16 | F13: 112
C14: T11 | D14: 4 | E14: 45 | F14: 180
C15: T12 | D15: 7 | E15: 36 | F15: 252
C16: T13 | D16: 1 | E16: 11 | F16: 11
C17: T14 | D17: 1 | E17: 4 | F17: 4
C18: T15 | D18: 6 | E18: 18 | F18: 108
C19: T16 | D19: 3 | E19: 49 | F19: 147
C20: T17 | D20: 3 | E20: 21 | F20: 63
C21: T18 | D21: 8 | E21: 27 | F21: 216
C22: T19 | D22: 5 | E22: 18 | F22: 90
C23: T20 | D23: 3 | E23: 5 | F23: 15
C24: T21 | D24: 8 | E24: 39 | F24: 312
D25: 9 | E25: 3 | F25: 27
C26: T23 | D26: 5 | E26: 28 | F26: 140
C27: T24 | D27: 3 | E27: 7 | F27: 21
A29: chb

Sheet Q02 (hidden)
A1: FALSE
A2: FALSE | O2: вопрос 2 | P2: Батьянов Денис © perfect-excel.ru
A3: FALSE | O3: При помощи какой клавиатурной комбинации можно переместиться на лист слева или справа от текущего?
A4: FALSE
A5: FALSE
A6: =MATCH(TRUE,$A$1:$A$5,0) -> 
F11: Вопрос целиком изложен справа
A29: chb

Sheet Q03 (hidden)
O2: вопрос 3 | P2: Батьянов Денис © perfect-excel.ru
C3: Column1 | D3: Column2 | E3: Column3 | K3: Column1 | L3: Column2 | M3: Column3 | O3: Добейтесь, чтобы суммы значений таблиц в G27 и I27 были одинаковыми. Правая таблица должна содержать те же значения, что и левая, но без формул!
C4: 0.6863179476 | D4: =$C4+1 -> 1.686317948 | E4: =$D4+1 -> 2.686317948
C5: =C4+1.5 -> 2.186317948 | D5: 3.186317948 | E5: 4.186317948
C6: =C5+1.5 -> 3.686317948 | D6: 4.686317948 | E6: 5.686317948
C7: 5.186317948 | D7: 6.186317948 | E7: 7.186317948
C8: 6.686317948 | D8: 7.686317948 | E8: 8.686317948
C9: 8.186317948 | D9: 9.186317948 | E9: 10.18631795
C10: 9.686317948 | D10: 10.68631795 | E10: 11.68631795
C11: 11.18631795 | D11: 12.18631795 | E11: 13.18631795
C12: 12.68631795 | D12: 13.68631795 | E12: 14.68631795
C13: 14.18631795 | D13: 15.18631795 | E13: 16.18631795
C14: 15.68631795 | D14: 16.68631795 | E14: 17.68631795
C15: 17.18631795 | D15: 18.18631795 | E15: 19.18631795
C16: 18.68631795 | D16: 19.68631795 | E16: 20.68631795
C17: 20.18631795 | D17: 21.18631795 | E17: 22.18631795
C18: 21.68631795 | D18: 22.68631795 | E18: 23.68631795
C19: 23.18631795 | D19: 24.18631795 | E19: 25.18631795
C20: 24.68631795 | D20: 25.68631795 | E20: 26.68631795
C21: 26.18631795 | D21: 27.18631795 | E21: 28.18631795
C22: 27.68631795 | D22: 28.68631795 | E22: 29.68631795
C23: 29.18631795 | D23: 30.18631795 | E23: 31.18631795
C24: 30.68631795 | D24: 31.68631795 | E24: 32.68631795
C25: 32.18631795 | D25: 33.18631795 | E25: 34.18631795
C26: 33.68631795 | D26: 34.68631795 | E26: 35.68631795
C27: 35.18631795 | D27: 36.18631795 | E27: 37.18631795 | F27: <------ | G27: =SUM(C4:E27) -> 1363.414892 | I27: =SUM(K4:M27) -> 0 | J27: ------>
A29: chb
AZ5000: =IF(AND(BA5000=0,G27=I27),1,0) -> 0 | BA5000: =SUM(BB5000:BD5023) -> 0 | BB5000: =N(_xlfn.ISFORMULA(K4)) -> 0 | BC5000: =N(_xlfn.ISFORMULA(L4)) -> 0 | BD5000: =N(_xlfn.ISFORMULA(M4)) -> 0
BB5001: =N(_xlfn.ISFORMULA(K5)) -> 0 | BC5001: =N(_xlfn.ISFORMULA(L5)) -> 0 | BD5001: =N(_xlfn.ISFORMULA(M5)) -> 0
BB5002: 0 | BC5002: 0 | BD5002: 0
BB5003: 0 | BC5003: 0 | BD5003: 0
BB5004: 0 | BC5004: 0 | BD5004: 0
BB5005: 0 | BC5005: 0 | BD5005: 0
BB5006: 0 | BC5006: 0 | BD5006: 0
BB5007: 0 | BC5007: 0 | BD5007: 0
BB5008: 0 | BC5008: 0 | BD5008: 0
BB5009: 0 | BC5009: 0 | BD5009: 0
BB5010: 0 | BC5010: 0 | BD5010: 0
BB5011: 0 | BC5011: 0 | BD5011: 0
BB5012: 0 | BC5012: 0 | BD5012: 0
BB5013: 0 | BC5013: 0 | BD5013: 0
BB5014: 0 | BC5014: 0 | BD5014: 0
BB5015: 0 | BC5015: 0 | BD5015: 0
BB5016: 0 | BC5016: 0 | BD5016: 0
BB5017: 0 | BC5017: 0 | BD5017: 0
BB5018: 0 | BC5018: 0 | BD5018: 0
BB5019: 0 | BC5019: 0 | BD5019: 0
BB5020: 0 | BC5020: 0 | BD5020: 0
BB5021: 0 | BC5021: 0 | BD5021: 0
BB5022: 0 | BC5022: 0 | BD5022: 0
BB5023: 0 | BC5023: 0 | BD5023: 0

Sheet Q04 (hidden)
O2: вопрос 4 | P2: Батьянов Денис © perfect-excel.ru
O3: Отформатировать лист согласно задания.
C4: Однажды в студёную зимнюю пору я из лесу вышел, был сильный мороз.
O10: Задание: содержимое ячейки C4 необходимо скопировать в объединенную ячейку, которая займёт место диапазона C7:F15. Включите перенос текста по строкам (wrap). Выравнивание сделать по центру и по горизонтали, и по вертикали. Цвет текста сделать БЕЛЫМ, цвет фона ЧЁРНЫМ.
A29: chb

Sheet Q05 (hidden)
O2: вопрос 5 | P2: Батьянов Денис © perfect-excel.ru
C3: 2430 | D3: 3555 | E3: 1844 | F3: 3817 | G3: 3820 | H3: 7461 | I3: 5373 | J3: 4376 | K3: 9281 | L3: 8946 | M3: 9473 | O3: Найдите сумму чисел в таблице
C4: 7530 | D4: 8922 | E4: 4272 | F4: 5225 | G4: 3371 | H4: 6542 | I4: 9510 | J4: 3409 | K4: 1681 | L4: 4521 | M4: 6633
C5: 2117 | D5: 9232 | E5: 3723 | F5: 8311 | G5: 2577 | H5: 6363 | I5: 8345 | J5: 3891 | K5: 5689 | L5: 5296 | M5: 1709
C6: 35 | D6: 2722 | E6: 2507 | F6: 128 | G6: 639 | H6: 2091 | I6: 6875 | J6: 561 | K6: 3812 | L6: 4750 | M6: 3980
C7: 7728 | D7: 3445 | E7: 6184 | F7: 5661 | G7: 5463 | H7: 1057 | I7: 7556 | J7: 7899 | K7: 5889 | L7: 5273 | M7: 1114
C8: 9966 | D8: 1363 | E8: 4440 | F8: 5457 | G8: 5124 | H8: 1795 | I8: 5468 | J8: 5764 | K8: 6104 | L8: 7435 | M8: 5369
C9: 9847 | D9: 4630 | E9: 9671 | F9: 5586 | G9: 4868 | H9: 3546 | I9: 4440 | J9: 3057 | K9: 9917 | L9: 8845 | M9: 5818
C10: 9062 | D10: 2377 | E10: 2601 | F10: 4242 | G10: 533 | H10: 162 | I10: 3706 | J10: 4053 | K10: 1046 | L10: 7111 | M10: 3004
C11: 3282 | D11: 1011 | E11: 4502 | F11: 338 | G11: 8597 | H11: 733 | I11: 1881 | J11: 5786 | K11: 6190 | L11: 5987 | M11: 4695
C12: 5055 | D12: 6359 | E12: 5595 | F12: 7385 | G12: 1530 | H12: 5767 | I12: 8474 | J12: 1441 | K12: 5658 | L12: 6994 | M12: 8378
C13: 4296 | D13: 2302 | E13: 2544 | F13: 4105 | G13: 2134 | H13: 9826 | I13: 1068 | J13: 6318 | K13: 6342 | L13: 1120 | M13: 3979
C14: 5520 | D14: 1163 | E14: 7253 | F14: 7804 | G14: 3543 | H14: 3007 | I14: 5810 | J14: 8325 | K14: 9121 | L14: 9988 | M14: 42
C15: 2400 | D15: 3207 | E15: 9378 | F15: 5305 | G15: 799 | H15: 4876 | I15: 9854 | J15: 88 | K15: 7329 | L15: 9803 | M15: 5653
C16: 2326 | D16: 1522 | E16: 6232 | F16: 4984 | G16: 6234 | H16: 2751 | I16: 6337 | J16: 3151 | K16: 5034 | L16: 6796 | M16: 9281
C17: 1615 | D17: 4543 | E17: 3478 | F17: 1449 | G17: 6998 | H17: 4362 | I17: 8010 | J17: 4469 | K17: 7232 | L17: 7994 | M17: 4812
C18: 9317 | D18: 4506 | E18: 427 | F18: 9375 | G18: 159 | H18: 5232 | I18: 7021 | J18: 6354 | K18: 5163 | L18: 7067 | M18: 7361
C19: 1720 | D19: 3684 | E19: 8924 | F19: 9352 | G19: 2377 | H19: 6415 | I19: 4265 | J19: 3391 | K19: 5400 | L19: 5028 | M19: 8704
C20: 7720 | D20: 5257 | E20: 9151 | F20: 9841 | G20: 3411 | H20: 4353 | I20: 6582 | J20: 1095 | K20: 8282 | L20: 3055 | M20: 7610
C21: 8466 | D21: 1909 | E21: 9852 | F21: 1350 | G21: 7955 | H21: 5472 | I21: 7896 | J21: 6877 | K21: 2649 | L21: 469 | M21: 2440
C22: 1969 | D22: 5604 | E22: 7089 | F22: 2418 | G22: 8711 | H22: 6314 | I22: 9390 | J22: 2068 | K22: 1984 | L22: 9844 | M22: 9080
C23: 4364 | D23: 1998 | E23: 3206 | F23: 3566 | G23: 4972 | H23: 7068 | I23: 3746 | J23: 5555 | K23: 8290 | L23: 7929 | M23: 6093
C24: 8196 | D24: 1990 | E24: 8917 | F24: 5608 | G24: 5734 | H24: 3981 | I24: 1582 | J24: 3602 | K24: 4780 | L24: 9049 | M24: 5764
C25: 1108 | D25: 4173 | E25: 1965 | F25: 7160 | G25: 1741 | H25: 2789 | I25: 2846 | J25: 3147 | K25: 5444 | L25: 8914 | M25: 4810
C26: 5399 | D26: 5755 | E26: 4872 | F26: 3143 | G26: 9632 | H26: 3105 | I26: 3436 | J26: 3133 | K26: 4718 | L26: 2419 | M26: 9431
C27: 6291 | D27: 7156 | E27: 5489 | F27: 9486 | G27: 8920 | H27: 4360 | I27: 2300 | J27: 4825 | K27: 5525 | L27: 5130 | M27: 7044
A29: chb

Sheet Q06 (hidden)
O2: вопрос 6 | P2: Батьянов Денис © perfect-excel.ru
C3: 0.1222800926 | D3: 0.4920949074 | E3: 0.05854166667 | F3: 0.2878472222 | O3: Количество полных суток в сумме этих значений
C4: 0.3352893519 | D4: 0.8646180556 | E4: 0.9509259259 | F4: 0.4636342593
C5: 0.4928356481 | D5: 0.845162037 | E5: 0.9784837963 | F5: 0.2008680556
C6: 0.3250347222 | D6: 0.7548148148 | E6: 0.4310416667 | F6: 0.5095601852
C7: 0.9377199074 | D7: 0.5856712963 | E7: 0.7758333333 | F7: 0.05552083333 | H7: Ячейки данной таблицы содержат время (ЧЧ:ММ:СС), но тип ячейки выбран неудачно с точки зрения визуализации значений времени. Посчитайте количество целых суток в сумме этих значений.
C8: 0.5338425926 | D8: 0.1369212963 | E8: 0.1862384259 | F8: 0.9179398148
C9: 0.5973958333 | D9: 0.6087037037 | E9: 0.01841435185 | F9: 0.1637384259
C10: 0.4476273148 | D10: 0.4961805556 | E10: 0.7640162037 | F10: 0.8007523148
C11: 0.4277777778 | D11: 0.7767013889 | E11: 0.5119212963 | F11: 0.1746759259
C12: 0.1241319444 | D12: 0.8443402778 | E12: 0.8705671296 | F12: 0.1787962963
C13: 0.2171875 | D13: 0.07509259259 | E13: 0.3489236111 | F13: 0.7355555556
C14: 0.8316319444 | D14: 0.1335069444 | E14: 0.2594444444 | F14: 0.7421296296
C15: 0.628125 | D15: 0.3554398148 | E15: 0.2154282407 | F15: 0.6632638889
C16: 0.2897453704 | D16: 0.1780671296 | E16: 0.9581365741 | F16: 0.3156944444
C17: 0.7051157407 | D17: 0.4559259259 | E17: 0.4867476852 | F17: 0.8817708333
C18: 0.4711574074 | D18: 0.1222453704 | E18: 0.9682986111 | F18: 0.1868055556
C19: 0.6419791667 | D19: 0.7423263889 | E19: 0.8303240741 | F19: 0.7645833333
C20: 0.6941666667 | D20: 0.6309837963 | E20: 0.3991319444 | F20: 0.3639236111
C21: 0.1384027778 | D21: 0.04545138889 | E21: 0.00255787037 | F21: 0.2754166667
C22: 0.7452893519 | D22: 0.323587963 | E22: 0.7275115741 | F22: 0.04015046296
C23: 0.5261111111 | D23: 0.8760763889 | E23: 0.2808912037 | F23: 0.420162037
C24: 0.88625 | D24: 0.8465162037 | E24: 0.2719097222 | F24: 0.9371527778
C25: 0.05703703704 | D25: 0.3321180556 | E25: 0.5733912037 | F25: 0.2759259259
C26: 0.7279976852 | D26: 0.465474537 | E26: 0.4591898148 | F26: 0.413287037
C27: 0.1906365741 | D27: 0.6162962963 | E27: 0.3021412037 | F27: 0.6100578704
A29: chb

Sheet Q07 (hidden)
A1: FALSE
A2: FALSE | O2: вопрос 7 | P2: Батьянов Денис © perfect-excel.ru
A3: FALSE | O3: Что по вашему мнению помогает работать с табличными данными?
A4: FALSE
A5: FALSE
F11: Вопрос целиком изложен справа
A29: =IF(A$1,"1,","")&IF(A$2,"2,","")&IF(A$3,"3,","")&IF(A$4,"4,","")&IF(A$5,"5","") -> 

Sheet Q08 (hidden)
A1: FALSE
A2: FALSE | O2: вопрос 8 | P2: Батьянов Денис © perfect-excel.ru
A3: FALSE | O3: Какой формат файлов поддерживает макросы?
A4: FALSE
A5: FALSE
F11: Вопрос целиком изложен справа
A29: =IF(A$1,"1,","")&IF(A$2,"2,","")&IF(A$3,"3,","")&IF(A$4,"4,","")&IF(A$5,"5","") ->  | B29: =IF(LEN(A29)=2,LEFT(A29,1),A29) -> 

Sheet Q09 (hidden)
O2: вопрос 9 | P2: Батьянов Денис © perfect-excel.ru
O3: Результат вычислений из ячейки C10, усеченный до 3 знаков после запятой.
C4: 12
C5: 45
C6: 7
C7: 2 | H7: В ячейке C10, пожалуйста, введите формулу для вычисления суммы ячеек С4 и С7. Умножьте её на ячейку С8. Полученное произведение уменьшите на значение ячейки С5 и итог разделите на С6. Полученное в C10 число усеките до 3 знаков после запятой и введите в поле ввода справа.
C8: 5
A29: chb

Sheet Q10 (hidden)
A1: TRUE
A2: FALSE | O2: вопрос 10 | P2: Батьянов Денис © perfect-excel.ru
A3: FALSE | C3: 100 | D3: 50 | O3: Введите среднюю величину по диапазону C3:D25 с математическим округлением до 3-го знака после запятой.
A4: FALSE | C4: 66 | D4: 90
A5: FALSE | C5: 87 | D5: 116
C6: 131 | D6: 147
C7: 90 | D7: 63 | H7: Найти среднюю величину по таблице
C8: 57 | D8: 141
C9: 71 | D9: 51
C10: 124 | D10: 55
C11: 83 | D11: 94
C12: 149 | D12: 55
C13: 123 | D13: 116
C14: 124 | D14: 125
C15: 76 | D15: 115
C16: 125 | D16: 125
C17: 143 | D17: 140
C18: 120 | D18: 64
C19: 68 | D19: 145
C20: 146 | D20: 75
C21: 87 | D21: 144
C22: 86 | D22: 56
C23: 133 | D23: 51
C24: 80 | D24: 58
C25: 94 | D25: 73
A29: chb

Sheet Q11 (hidden)
A1: TRUE
A2: FALSE | O2: вопрос 11 | P2: Батьянов Денис © perfect-excel.ru
A3: FALSE | C3: Год | D3: Продажи | O3: Выполнить задание с диаграммой
A4: FALSE | C4: 2005 | D4: 997
A5: FALSE | C5: 2006 | D5: 924
C6: 2007 | D6: 899
C7: 2008 | D7: 852
C8: 2009 | D8: 918
C9: 2010 | D9: 869
C10: 2011 | D10: 1006 | O10: Задание: в приложенной диаграмме необходимо, не меняя диапазона построения, отфильтровать (исключить) столбцы 2005 и 2006 годов. Кроме этого смените тип диаграммы на гистограмму с группировкой. Пожалуйста, сделайте именно и только то, что написано в задании. Ни в коем случае не пересоздавайте диаграмму. К сожалению, обладателям MS Office 2007 этот вопрос можно пропустить - не умеет он фильтровать данные в рядах диаграмм.
C11: 2012 | D11: 962
C12: 2013 | D12: 987
A29: chb

Sheet Q12 (hidden)
A1: TRUE
A2: FALSE | O2: вопрос 12 | P2: Батьянов Денис © perfect-excel.ru
A3: FALSE | C3: 568,312,269,690,416 | O3: Разбить текст по столбцам
A4: FALSE | C4: 924,468,937,679,412
A5: FALSE | C5: 277,129,730,468,35
C6: 430,471,375,171,71
C7: 422,815,184,84,807
C8: 555,245,387,642,766
C9: 492,943,823,385,411
C10: 235,741,387,659,374 | O10: Задание: разбейте данные с разделителем "запятая" из колонки C по колонкам C:G. Получившиеся данные Excel должен воспринимать как числа.
C11: 258,441,406,915,22
C12: 866,578,147,154,845
C13: 671,970,415,222,464
C14: 145,827,362,899,726
C15: 291,837,197,890,310
C16: 184,55,835,354,404
C17: 317,984,453,772,763
C18: 292,999,630,834,346
C19: 194,686,462,168,194
C20: 191,551,926,187,954
C21: 199,234,226,725,374
C22: 879,392,162,143,414
C23: 155,891,666,650,942
C24: 312,842,537,990,43
C25: 218,920,310,708,483
C26: 659,413,542,141,215
C27: 430,646,280,594,696
A29: chb
AZ5000: =IF(SUM(C3:G27)=61813,1,0) -> 0

Sheet Q13 (hidden)
A1: TRUE
A2: FALSE | O2: вопрос 13 | P2: Батьянов Денис © perfect-excel.ru
A3: FALSE | C3: 76trash0 | D3: 98trash0 | E3: 1trash973 | O3: Работа с текстом
A4: FALSE | C4: 9706 | D4: 18707 | E4: 23233
A5: FALSE | C5: trashtrash31 | D5: 10142 | E5: 10727
C6: 6773 | D6: 6934 | E6: 11049
C7: 4399 | D7: trash87trash | E7: 6962
C8: 199 | D8: 63trash1 | E8: 11167
C9: trash769 | D9: 7969 | E9: 14trash74
C10: trash147 | D10: 7896 | E10: 11219 | O10: Задание: в диапазоне C3:E27 замените везде слово "trash" на "5".
C11: 671 | D11: 9397 | E11: 12376
C12: 7trash3trash | D12: 14266 | E12: 14968
C13: 4694 | D13: 10617 | E13: 172trash6
C14: trash403 | D14: trash420 | E14: 6trash07
C15: 97trash2 | D15: 12223 | E15: 21802
C16: 44trash1 | D16: trash234 | E16: 10029
C17: 6203 | D17: 1trash087 | E17: 17979
C18: 8724 | D18: 14241 | E18: 23779
C19: 8396 | D19: 179trashtrash | E19: 2617trash
C20: 4890 | D20: 81trash8 | E20: 13920
C21: 934 | D21: 10362 | E21: 191trash0
C22: 2117 | D22: 7718 | E22: 7977
C23: trash776 | D23: 6624 | E23: 12646
C24: 926trash | D24: 1trash026 | E24: 19317
C25: 3707 | D25: 12470 | E25: 13770
C26: 3192 | D26: 7223 | E26: 12883
C27: 2737 | D27: 110trashtrash | E27: 19676 | G27: =SUM(C3:E27) -> 499610
A29: chb
AZ5000: =IF(G27=765535,1,0) -> 0

Sheet Q14 (hidden)
A1: FALSE
A2: FALSE | O2: вопрос 14 | P2: Батьянов Денис © perfect-excel.ru
A3: FALSE | C3: Товары | D3: Цена | E3: Кол-во янв | F3: Кол-во фев | G3: Кол-во мар | H3: Сумма янв | I3: Сумма фев | J3: Сумма мар | O3: Какую формулу наиболее рационально ввести в ячейку H4, имея в виду её дальнейшее распространение на весь диапазон H4:J27?
A4: FALSE | C4: T1 | D4: 3 | E4: 7 | F4: 18 | G4: 9
A5: FALSE | C5: T2 | D5: 4 | E5: 33 | F5: 48 | G5: 13
A6: =MATCH(TRUE,$A$1:$A$5,0) ->  | C6: T3 | D6: 3 | E6: 17 | F6: 11 | G6: 13
C7: T4 | D7: 10 | E7: 37 | F7: 28 | G7: 47
C8: T5 | D8: 10 | E8: 5 | F8: 15 | G8: 14
C9: T6 | D9: 1 | E9: 22 | F9: 44 | G9: 3
C10: T7 | D10: 10 | E10: 23 | F10: 24 | G10: 40
C11: T8 | D11: 10 | E11: 44 | F11: 38 | G11: 13
C12: T9 | D12: 1 | E12: 39 | F12: 43 | G12: 7
C13: T10 | D13: 7 | E13: 15 | F13: 1 | G13: 41
C14: T11 | D14: 4 | E14: 7 | F14: 1 | G14: 4
C15: T12 | D15: 7 | E15: 2 | F15: 39 | G15: 7
C16: T13 | D16: 1 | E16: 38 | F16: 3 | G16: 23
C17: T14 | D17: 1 | E17: 27 | F17: 32 | G17: 4
C18: T15 | D18: 6 | E18: 5 | F18: 27 | G18: 10
C19: T16 | D19: 3 | E19: 13 | F19: 40 | G19: 50
C20: T17 | D20: 3 | E20: 11 | F20: 21 | G20: 12
C21: T18 | D21: 8 | E21: 29 | F21: 45 | G21: 49
C22: T19 | D22: 5 | E22: 22 | F22: 5 | G22: 1
C23: T20 | D23: 3 | E23: 39 | F23: 11 | G23: 44
C24: T21 | D24: 8 | E24: 35 | F24: 20 | G24: 34
C25: T22 | D25: 9 | E25: 8 | F25: 34 | G25: 43
C26: T23 | D26: 5 | E26: 5 | F26: 3 | G26: 9
C27: T24 | D27: 3 | E27: 4 | F27: 36 | G27: 46
A29: chb

Sheet Q15 (hidden)
A1: TRUE
A2: FALSE | O2: вопрос 15 | P2: Батьянов Денис © perfect-excel.ru
A3: FALSE | C3: PRODUCTS | D3: REGION | E3: AGENT | F3: SALES | O3: Сортировка по нескольким столбцам
A4: FALSE | C4: Продукт 1 | D4: Восток | E4: Наталья | F4: 7
A5: FALSE | C5: Продукт 1 | D5: Север | E5: Николай | F5: 12
C6: Продукт 1 | D6: Запад | E6: Саша | F6: 14
C7: Продукт 1 | D7: Запад | E7: Саша | F7: 25
C8: Продукт 3 | D8: Север | E8: Саша | F8: 29
C9: Продукт 2 | D9: Север | E9: Наталья | F9: 35
C10: Продукт 2 | D10: Север | E10: Николай | F10: 36 | O10: Задание: отсортируйте таблицу одновременно по нескольким столбцам в следующей последовательности: REGION, AGENT, PRODUCT. Порядок сортировки прямой: от А до Я.
C11: Продукт 3 | D11: Север | E11: Наталья | F11: 40
C12: Продукт 3 | D12: Запад | E12: Саша | F12: 46
C13: Продукт 2 | D13: Север | E13: Николай | F13: 49
C14: Продукт 1 | D14: Запад | E14: Саша | F14: 53
C15: Продукт 2 | D15: Восток | E15: Саша | F15: 56
C16: Продукт 1 | D16: Север | E16: Саша | F16: 61
C17: Продукт 2 | D17: Север | E17: Наталья | F17: 66
C18: Продукт 1 | D18: Запад | E18: Наталья | F18: 75
C19: Продукт 3 | D19: Север | E19: Наталья | F19: 75
C20: Продукт 3 | D20: Север | E20: Николай | F20: 76
C21: Продукт 3 | D21: Север | E21: Наталья | F21: 80
C22: Продукт 1 | D22: Север | E22: Николай | F22: 80
C23: Продукт 3 | D23: Север | E23: Наталья | F23: 84
C24: Продукт 1 | D24: Север | E24: Саша | F24: 87
C25: Продукт 3 | D25: Восток | E25: Николай | F25: 91
C26: Продукт 1 | D26: Восток | E26: Наталья | F26: 97
C27: Продукт 1 | D27: Запад | E27: Николай | F27: 100
A29: chb
AZ5000: =SUM(BI5000:BL5023) -> 25 | BA5000: Продукт 1 | BB5000: Восток | BC5000: Наталья | BD5000: 7 | BE5000: =C4 -> Продукт 1 | BF5000: =D4 -> Восток | BG5000: =E4 -> Наталья | BH5000: =F4 -> 7 | BI5000: =N(BA5000=BE5000) -> 1 | BJ5000: =N(BB5000=BF5000) -> 1 | BK5000: =N(BC5000=BG5000) -> 1 | BL5000: =N(BD5000=BH5000) -> 1
BA5001: Продукт 1 | BB5001: Восток | BC5001: Наталья | BD5001: 97 | BE5001: =C5 -> Продукт 1 | BF5001: =D5 -> Север | BG5001: =E5 -> Николай | BH5001: =F5 -> 12 | BI5001: =N(BA5001=BE5001) -> 1 | BJ5001: =N(BB5001=BF5001) -> 0 | BK5001: =N(BC5001=BG5001) -> 0 | BL5001: =N(BD5001=BH5001) -> 0
BA5002: Продукт 3 | BB5002: Восток | BC5002: Николай | BD5002: 91 | BE5002: Продукт 1 | BF5002: Запад | BG5002: Саша | BH5002: 14 | BI5002: 0 | BJ5002: 0 | BK5002: 0 | BL5002: 0
BA5003: Продукт 2 | BB5003: Восток | BC5003: Саша | BD5003: 56 | BE5003: Продукт 1 | BF5003: Запад | BG5003: Саша | BH5003: 25 | BI5003: 0 | BJ5003: 0 | BK5003: 1 | BL5003: 0
BA5004: Продукт 1 | BB5004: Запад | BC5004: Наталья | BD5004: 75 | BE5004: Продукт 3 | BF5004: Север | BG5004: Саша | BH5004: 29 | BI5004: 0 | BJ5004: 0 | BK5004: 0 | BL5004: 0
BA5005: Продукт 1 | BB5005: Запад | BC5005: Николай | BD5005: 100 | BE5005: Продукт 2 | BF5005: Север | BG5005: Наталья | BH5005: 35 | BI5005: 0 | BJ5005: 0 | BK5005: 0 | BL5005: 0
BA5006: Продукт 1 | BB5006: Запад | BC5006: Саша | BD5006: 14 | BE5006: Продукт 2 | BF5006: Север | BG5006: Николай | BH5006: 36 | BI5006: 0 | BJ5006: 0 | BK5006: 0 | BL5006: 0
BA5007: Продукт 1 | BB5007: Запад | BC5007: Саша | BD5007: 25 | BE5007: Продукт 3 | BF5007: Север | BG5007: Наталья | BH5007: 40 | BI5007: 0 | BJ5007: 0 | BK5007: 0 | BL5007: 0
BA5008: Продукт 1 | BB5008: Запад | BC5008: Саша | BD5008: 53 | BE5008: Продукт 3 | BF5008: Запад | BG5008: Саша | BH5008: 46 | BI5008: 0 | BJ5008: 1 | BK5008: 1 | BL5008: 0
BA5009: Продукт 3 | BB5009: Запад | BC5009: Саша | BD5009: 46 | BE5009: Продукт 2 | BF5009: Север | BG5009: Николай | BH5009: 49 | BI5009: 0 | BJ5009: 0 | BK5009: 0 | BL5009: 0
BA5010: Продукт 2 | BB5010: Север | BC5010: Наталья | BD5010: 35 | BE5010: Продукт 1 | BF5010: Запад | BG5010: Саша | BH5010: 53 | BI5010: 0 | BJ5010: 0 | BK5010: 0 | BL5010: 0
BA5011: Продукт 2 | BB5011: Север | BC5011: Наталья | BD5011: 66 | BE5011: Продукт 2 | BF5011: Восток | BG5011: Саша | BH5011: 56 | BI5011: 1 | BJ5011: 0 | BK5011: 0 | BL5011: 0
BA5012: Продукт 3 | BB5012: Север | BC5012: Наталья | BD5012: 40 | BE5012: Продукт 1 | BF5012: Север | BG5012: Саша | BH5012: 61 | BI5012: 0 | BJ5012: 1 | BK5012: 0 | BL5012: 0
BA5013: Продукт 3 | BB5013: Север | BC5013: Наталья | BD5013: 75 | BE5013: Продукт 2 | BF5013: Север | BG5013: Наталья | BH5013: 66 | BI5013: 0 | BJ5013: 1 | BK5013: 1 | BL5013: 0
BA5014: Продукт 3 | BB5014: Север | BC5014: Наталья | BD5014: 80 | BE5014: Продукт 1 | BF5014: Запад | BG5014: Наталья | BH5014: 75 | BI5014: 0 | BJ5014: 0 | BK5014: 1 | BL5014: 0
BA5015: Продукт 3 | BB5015: Север | BC5015: Наталья | BD5015: 84 | BE5015: Продукт 3 | BF5015: Север | BG5015: Наталья | BH5015: 75 | BI5015: 1 | BJ5015: 1 | BK5015: 1 | BL5015: 0
BA5016: Продукт 1 | BB5016: Север | BC5016: Николай | BD5016: 12 | BE5016: Продукт 3 | BF5016: Север | BG5016: Николай | BH5016: 76 | BI5016: 0 | BJ5016: 1 | BK5016: 1 | BL5016: 0
BA5017: Продукт 1 | BB5017: Север | BC5017: Николай | BD5017: 80 | BE5017: Продукт 3 | BF5017: Север | BG5017: Наталья | BH5017: 80 | BI5017: 0 | BJ5017: 1 | BK5017: 0 | BL5017: 1
BA5018: Продукт 2 | BB5018: Север | BC5018: Николай | BD5018: 36 | BE5018: Продукт 1 | BF5018: Север | BG5018: Николай | BH5018: 80 | BI5018: 0 | BJ5018: 1 | BK5018: 1 | BL5018: 0
BA5019: Продукт 2 | BB5019: Север | BC5019: Николай | BD5019: 49 | BE5019: Продукт 3 | BF5019: Север | BG5019: Наталья | BH5019: 84 | BI5019: 0 | BJ5019: 1 | BK5019: 0 | BL5019: 0
BA5020: Продукт 3 | BB5020: Север | BC5020: Николай | BD5020: 76 | BE5020: Продукт 1 | BF5020: Север | BG5020: Саша | BH5020: 87 | BI5020: 0 | BJ5020: 1 | BK5020: 0 | BL5020: 0
BA5021: Продукт 1 | BB5021: Север | BC5021: Саша | BD5021: 61 | BE5021: Продукт 3 | BF5021: Восток | BG5021: Николай | BH5021: 91 | BI5021: 0 | BJ5021: 0 | BK5021: 0 | BL5021: 0
BA5022: Продукт 1 | BB5022: Север | BC5022: Саша | BD5022: 87 | BE5022: Продукт 1 | BF5022: Восток | BG5022: Наталья | BH5022: 97 | BI5022: 1 | BJ5022: 0 | BK5022: 0 | BL5022: 0
BA5023: Продукт 3 | BB5023: Север | BC5023: Саша | BD5023: 29 | BE5023: Продукт 1 | BF5023: Запад | BG5023: Николай | BH5023: 100 | BI5023: 0 | BJ5023: 0 | BK5023: 0 | BL5023: 0

Sheet Q16 (hidden)
A1: TRUE
A2: FALSE | O2: вопрос 16 | P2: Батьянов Денис © perfect-excel.ru
A3: FALSE | O3: Сгруппировать столбцы
A4: FALSE | C4: Продукт | D4: Январь | E4: Февраль | F4: Март | G4: Квартал 1 | H4: Апрель | I4: Май | J4: Июнь | K4: Квартал 2
A5: FALSE | C5: P1 | D5: 293 | E5: 266 | F5: 262 | G5: =SUM(D5:F5) -> 821 | H5: 474 | I5: 404 | J5: 484 | K5: =SUM(H5:J5) -> 1362
C6: P2 | D6: 279 | E6: 421 | F6: 332 | G6: =SUM(D6:F6) -> 1032 | H6: 482 | I6: 425 | J6: 486 | K6: =SUM(H6:J6) -> 1393
C7: P3 | D7: 375 | E7: 402 | F7: 254 | G7: 1031 | H7: 500 | I7: 307 | J7: 403 | K7: 1210
C8: P4 | D8: 455 | E8: 471 | F8: 361 | G8: 1287 | H8: 357 | I8: 475 | J8: 460 | K8: 1292
C9: P5 | D9: 400 | E9: 298 | F9: 273 | G9: 971 | H9: 232 | I9: 414 | J9: 492 | K9: 1138
C10: P6 | D10: 226 | E10: 318 | F10: 465 | G10: 1009 | H10: 220 | I10: 410 | J10: 328 | K10: 958 | O10: Задание: настройте группировку столбцов для квартала 1 и 2, чтобы была возможность скрыть месячные продажи продуктов и видеть только квартальные продажи.
C11: P7 | D11: 414 | E11: 464 | F11: 466 | G11: 1344 | H11: 332 | I11: 281 | J11: 424 | K11: 1037
C12: P8 | D12: 444 | E12: 405 | F12: 245 | G12: 1094 | H12: 215 | I12: 331 | J12: 327 | K12: 873
C13: P9 | D13: 432 | E13: 415 | F13: 320 | G13: 1167 | H13: 374 | I13: 353 | J13: 424 | K13: 1151
C14: P10 | D14: 413 | E14: 283 | F14: 353 | G14: 1049 | H14: 367 | I14: 384 | J14: 390 | K14: 1141
A29: chb

Sheet Q17 (hidden)
A1: TRUE
A2: FALSE | O2: вопрос 17 | P2: Батьянов Денис © perfect-excel.ru
A3: FALSE | C3: Фамилия | D3: Имя | E3: Фамилия Имя | O3: Склейка строк
... 3 more rows

Sheet Q18 (hidden)
A1: TRUE
A2: FALSE | O2: вопрос 18 | P2: Батьянов Денис © perfect-excel.ru
A3: FALSE | O3: Формулы, реализующие условие
... 3 more rows

Sheet Q19 (hidden)
A1: TRUE
A2: FALSE | O2: вопрос 19 | P2: Батьянов Денис © perfect-excel.ru
A3: FALSE | O3: Формулы для работы с текстовыми строками
A4: FALSE | XAS4: =IF(IFERROR(SEARCH("СЦЕПИТЬ",$XAT4)>1,0),1,0) -> 0 | XAT4: =HasFormula -> 
A5: FALSE | XAS5: =IF(IFERROR(SEARCH("СЦЕПИТЬ",$XAT5)>1,0),1,0) -> 0 | XAT5: =HasFormula -> 
C6: Петров Иван Иванович | XAS6: 0 | XAT6: =HasFormula -> 
C7: Сидоров Евгений Денисович | W7: =HasFormula ->  | XAS7: 0 | XAT7: =HasFormula -> 
... 1 more rows

Sheet Q20 (hidden)
A1: TRUE
A2: FALSE | O2: вопрос 20 | P2: Батьянов Денис © perfect-excel.ru
A3: FALSE | C3: Агент | D3: Продажи | O3: Условное суммирование и подсчёт
A4: FALSE | C4: Наталья | D4: 442
A5: FALSE | C5: Юрий | D5: 323
C6: Михаил | D6: 648
C7: Михаил | D7: 303 | F7: Продажи агента Наталья | W7: =HasFormula -> 
C8: Егор | D8: 688 | W8: =HasFormula -> 
C9: Наталья | D9: 679 | W9: =HasFormula -> 
C10: Юрий | D10: 530 | F10: Сколько строк по Егору | O10: Задание: В ячейку F8 введите формулу, расчитывающую суммарные продажи агента Наталья, а в ячейку F11 - формулу, подсчитывающую сколько фактов продаж (отдельных строк) имел Егор в исходной таблице.
C11: Егор | D11: 272
C12: Наталья | D12: 591
C13: Егор | D13: 253
C14: Егор | D14: 548
C15: Егор | D15: 696
C16: Лена | D16: 311
C17: Юрий | D17: 541
C18: Лена | D18: 584
C19: Лена | D19: 576
C20: Юрий | D20: 635
C21: Стас | D21: 345
C22: Наталья | D22: 297
C23: Стас | D23: 652
C24: Наталья | D24: 283
C25: Наталья | D25: 547
C26: Михаил | D26: 371
C27: Наталья | D27: 368
A29: chb
BA4999: Было | BC4999: Наши | BE4999: Эталон | BF4999: Ученик
AZ5000: =IF(AND(BE5000=BF5000,BE5001=BF5001),1,0) -> 0 | BA5000: Наталья | BB5000: 442 | BC5000: Наталья | BD5000: 569 | BE5000: 3541
BA5001: Юрий | BB5001: 323 | BC5001: Юрий | BD5001: 448 | BE5001: 7
BA5002: Михаил | BB5002: 648 | BC5002: Михаил | BD5002: 503
BA5003: Михаил | BB5003: 303 | BC5003: Михаил | BD5003: 598
BA5004: Егор | BB5004: 688 | BC5004: Егор | BD5004: 586
BA5005: Наталья | BB5005: 679 | BC5005: Наталья | BD5005: 556
BA5006: Юрий | BB5006: 530 | BC5006: Юрий | BD5006: 547
BA5007: Егор | BB5007: 272 | BC5007: Егор | BD5007: 444
BA5008: Наталья | BB5008: 591 | BC5008: Наталья | BD5008: 481
BA5009: Егор | BB5009: 253 | BC5009: Егор | BD5009: 441
BA5010: Егор | BB5010: 548 | BC5010: Егор | BD5010: 486
BA5011: Егор | BB5011: 696 | BC5011: Егор | BD5011: 589
BA5012: Лена | BB5012: 311 | BC5012: Лена | BD5012: 578
BA5013: Юрий | BB5013: 541 | BC5013: Егор | BD5013: 463
BA5014: Лена | BB5014: 584 | BC5014: Лена | BD5014: 458
BA5015: Лена | BB5015: 576 | BC5015: Лена | BD5015: 482
BA5016: Юрий | BB5016: 635 | BC5016: Юрий | BD5016: 472
BA5017: Стас | BB5017: 345 | BC5017: Егор | BD5017: 422
BA5018: Наталья | BB5018: 297 | BC5018: Наталья | BD5018: 511
BA5019: Стас | BB5019: 652 | BC5019: Стас | BD5019: 495
BA5020: Наталья | BB5020: 283 | BC5020: Наталья | BD5020: 449
BA5021: Наталья | BB5021: 547 | BC5021: Наталья | BD5021: 435
BA5022: Михаил | BB5022: 371 | BC5022: Михаил | BD5022: 493
BA5023: Наталья | BB5023: 368 | BC5023: Наталья | BD5023: 540

Sheet Q21 (hidden)
A1: TRUE
A2: FALSE | O2: вопрос 21 | P2: Батьянов Денис © perfect-excel.ru
A3: FALSE | C3: Агенты | E3: Выбрать агента | O3: Проверка данных в ячейках
... 3 more rows

Sheet Q22 (hidden)
A1: TRUE
A2: FALSE | O2: вопрос 22 | P2: Батьянов Денис © perfect-excel.ru
A3: FALSE | C3: Агент | D3: Продажи | F3: Агент | O3: Функции извлечения данных из таблиц
... 4 more rows

Sheet Q23 (hidden)
A1: TRUE
A2: FALSE | O2: вопрос 23 | P2: Батьянов Денис © perfect-excel.ru
A3: FALSE | C3: 991 | D3: 440 | E3: 891 | F3: 954 | G3: 519 | O3: Транспонирование таблицы
A4: FALSE | C4: 329 | D4: 954 | E4: 283 | F4: 160 | G4: 487
A5: FALSE | C5: 434 | D5: 128 | E5: 533 | F5: 190 | G5: 7
C6: 54 | D6: 551 | E6: 11 | F6: 918 | G6: 242
C7: 639 | D7: 792 | E7: 826 | F7: 822 | G7: 864 | W7: =HasFormula -> 
W8: =HasFormula -> 
W9: =HasFormula -> 
O10: Задание: транспонируйте диапазон C3:G7 и поместите в диапазон C9:G13
A29: chb
AZ5000: =SUM(BF5000:BJ5004) -> 0 | BA5000: 991 | BB5000: 329 | BC5000: 434 | BD5000: 54 | BE5000: 639 | BF5000: =N(BA5000=C9) -> 0 | BG5000: 0 | BH5000: 0 | BI5000: 0 | BJ5000: 0
BA5001: 440 | BB5001: 954 | BC5001: 128 | BD5001: 551 | BE5001: 792 | BF5001: 0 | BG5001: 0 | BH5001: 0 | BI5001: 0 | BJ5001: 0
BA5002: 891 | BB5002: 283 | BC5002: 533 | BD5002: 11 | BE5002: 826 | BF5002: 0 | BG5002: 0 | BH5002: 0 | BI5002: 0 | BJ5002: 0
BA5003: 954 | BB5003: 160 | BC5003: 190 | BD5003: 918 | BE5003: 822 | BF5003: 0 | BG5003: 0 | BH5003: 0 | BI5003: 0 | BJ5003: 0
BA5004: 519 | BB5004: 487 | BC5004: 7 | BD5004: 242 | BE5004: 864 | BF5004: 0 | BG5004: 0 | BH5004: 0 | BI5004: 0 | BJ5004: 0

Sheet Q24 (hidden)
A1: TRUE
A2: FALSE | O2: вопрос 24 | P2: Батьянов Денис © perfect-excel.ru
A3: FALSE | C3: Значения | O3: Удаление дубликатов
A4: FALSE | C4: 8 | XAO4: =IF(SUM(XAP4:XAS23)=40,1,0) ->  | XAP4: =IF(SEARCH("&",$XAT4)>1,1,0) ->  | XAQ4: =IF(IFERROR(SEARCH("CONCATENATE",$XAT4)>1,0),1,0) -> 0 | XAR4: =IF(SEARCH(""" """,$XAT4)>1,1,0) ->  | XAS4: =IF(IFERROR(SEARCH("СЦЕПИТЬ",$XAT4)>1,0),1,0) -> 0 | XAT4: =HasFormula -> 
A5: FALSE | C5: 2 | XAP5: =IF(SEARCH("&",$XAT5)>1,1,0) ->  | XAQ5: =IF(IFERROR(SEARCH("CONCATENATE",$XAT5)>1,0),1,0) -> 0 | XAR5: =IF(SEARCH(""" """,$XAT5)>1,1,0) ->  | XAS5: =IF(IFERROR(SEARCH("СЦЕПИТЬ",$XAT5)>1,0),1,0) -> 0 | XAT5: =HasFormula -> 
C6: 7 | XAQ6: 0 | XAS6: 0 | XAT6: =HasFormula -> 
C7: 7 | W7: =HasFormula ->  | XAQ7: 0 | XAS7: 0 | XAT7: =HasFormula -> 
... 1 more rows

Sheet Q25 (hidden)
A1: TRUE
A2: FALSE | O2: вопрос 25 | P2: Батьянов Денис © perfect-excel.ru
A3: FALSE | C3: key | D3: Абонент | E3: Месяц | F3: Сумма | H3: Месяц | O3: Умение находить ошибки в формулах
... 4 more rows

Sheet Q26 (hidden)
A1: TRUE
A2: FALSE | O2: вопрос 26 | P2: Батьянов Денис © perfect-excel.ru
A3: FALSE | O3: Сводные таблицы (Pivot tables)
A4: FALSE | XAO4: =IF(SUM(XAP4:XAS23)=40,1,0) ->  | XAP4: =IF(SEARCH("&",$XAT4)>1,1,0) ->  | XAQ4: =IF(IFERROR(SEARCH("CONCATENATE",$XAT4)>1,0),1,0) -> 0 | XAR4: =IF(SEARCH(""" """,$XAT4)>1,1,0) ->  | XAS4: =IF(IFERROR(SEARCH("СЦЕПИТЬ",$XAT4)>1,0),1,0) -> 0 | XAT4: =HasFormula -> 
A5: FALSE | XAP5: =IF(SEARCH("&",$XAT5)>1,1,0) ->  | XAQ5: =IF(IFERROR(SEARCH("CONCATENATE",$XAT5)>1,0),1,0) -> 0 | XAR5: =IF(SEARCH(""" """,$XAT5)>1,1,0) ->  | XAS5: =IF(IFERROR(SEARCH("СЦЕПИТЬ",$XAT5)>1,0),1,0) -> 0 | XAT5: =HasFormula -> 
XAQ6: 0 | XAS6: 0 | XAT6: =HasFormula -> 
W7: =HasFormula ->  | XAQ7: 0 | XAS7: 0 | XAT7: =HasFormula -> 
... 1 more rows

Sheet Q27 (hidden)
A1: TRUE
A2: FALSE | O2: вопрос 27 | P2: Батьянов Денис © perfect-excel.ru
A3: FALSE | C3: A | D3: B | E3: C | O3: Условное форматирование
... 4 more rows

Sheet Q28 (hidden)
A1: TRUE
A2: FALSE | O2: вопрос 28 | P2: Батьянов Денис © perfect-excel.ru
A3: FALSE | C3: Клиент | D3: 100 | E3: 500 | F3: 1000 | H3: Клиент | I3: Заказ | J3: Скидка | O3: Продвинутые формулы
... 4 more rows

Sheet Q29 (hidden)
A1: TRUE
A2: FALSE | O2: вопрос 29 | P2: Батьянов Денис © perfect-excel.ru
A3: FALSE | C3: Агенты | E3: Выбрать агента | O3: Выпадающий список + именованный диапазон + умная таблица
... 3 more rows
